Cogmind - Beta 15 @@@ ROGUE MODE // 2025.09.23 @ 03:28:09 Player: shapeshifter Result: Destroyed by Alpha 7 with Enhanced Gamma Rifle Performance ------------- Evolutions (9) 4500 Regions Visited (26) 5200 Robots Destroyed (312) 1560 Value Destroyed (14100) 14100 Prototype IDs (35) 700 Alien Tech Used (0) 0 Bonus (10493) 10493 TOTAL SCORE: 36553 Bonus ------- High Alert Combat Kills 3001 Follower Combat Kills 421 Entered Garrisons 600 Entered DSFs 1000 Aligned with FarCom 300 Acquired ECA 300 Met Warlord at Base 500 MAIN.C Attacked Warlord 500 Met Warlord at Research 2000 Invited to Help at Command 2000 Friendly Fire -129 Cogmind --------- Core Integrity 0/1600 Matter 34/300 Energy 59/100 System Corruption 14% Temperature Cool (0) Movement Flying (40) Location -1/Command Parts ------- > --- POWER (2) -------- (None) > --- PROPULSION (8) --- Field Propulsion Array > --- UTILITY (11) ----- Enhanced Optical Array Advanced Signal Interpreter Improved Targeting Computer Graphene Brace > --- WEAPON (4) ------- Enhanced Hardcell Cannon > --- INVENTORY (5) ---- Enhanced Quantum Rifle Peak State ------------ > --- POWER ------------ Quantum Reactor Quantum Reactor > --- PROPULSION ------- Heavy Shield Leg Heavy Shield Leg Heavy Shield Leg Heavy Shield Leg > --- UTILITY ---------- Huge Storage Unit Enhanced Optical Array Advanced Signal Interpreter Improved Targeting Computer Core Analyzer Improved Kinecellerator Advanced Weapon Cycler Advanced Phase Shifter Centrium Medium Armor Plating Centrium Medium Armor Plating Graphene Brace > --- WEAPON ----------- Enhanced Nova Cannon Enhanced Nova Cannon Enhanced Hardcell Cannon Enhanced Hardcell Cannon > --- INVENTORY -------- Quantum Reactor Quantum Reactor Quantum Reactor Myomer Leg Myomer Leg Biometal Leg Biometal Leg Biometal Leg Centrium Leg Heavy Shield Leg Heavy Shield Leg Centrium Medium Armor Plating Centrium Medium Armor Plating Vortex Rifle Vortex Rifle Enhanced Quantum Rifle Nova Cannon Nova Cannon Enhanced Hardcell Cannon Improved Remote Datajack [Rating: 209] Favorites ----------- Power Quantum Reactor Engine Heavy Ion Engine Power Core Cooled Fission Core Reactor Quantum Reactor Propulsion Light Treads Treads Light Treads Leg Heavy Shield Leg Wheel Wheel Hover Unit Combat Linear Gravjet Flight Unit Nuclear Pulse Thruster Utility Huge Storage Unit Device Graphene Brace Storage Huge Storage Unit Processor Target Analyzer Hackware Hacking Suite Protection Improved Light Armor Plating Weapon Improved Assault Rifle Energy Gun EM Pulse Gun Energy Cannon Enhanced Nova Cannon Ballistic Gun Improved Assault Rifle Ballistic Cannon Enhanced Hardcell Cannon Launcher Heavy Missile Launcher Special Weapon Improved Remote Datajack Build | -11 -10 -10 -9 -9 -9 -8 -8 -8 -8 -7 -7 -7 -7 -6 -6 -5 -5 -5 -5 -4 -4 -3 -3 -2 -1 -1 ------- Run | Yrd Mat Min Mat Min Exi Min Mat Gar Mat Fac Gar Fac Gar Fac DSF Fac Upp Upp War Pro Fac Res DSF Res Acc Com Slots Evolved 18 | . . . 2 . . . 2 . . 2 . . . 2 . 2 . . . . 2 2 . 2 2 . Power 1 | . . . . . . . . . . . . . . . . . . . . . . 1 . . . . Propulsion 6 | . . . . . . . 1 . . 1 . . . . . 2 . . . . 2 . . . . . Utility 9 | . . . 2 . . . 1 . . 1 . . . 2 . . . . . . . 1 . . 2 . Weapon 2 | . . . . . . . . . . . . . . . . . . . . . . . . 2 . . Parts Attached 206 | 7 3 1 24 2 2 5 23 14 9 2 18 10 2 4 6 12 . 6 12 2 1 1 11 10 16 3 Power 16 | 1 . . 2 . . . 2 2 . . . 1 1 . 1 . . 1 1 . . . 3 . 1 . Engine 10 | 1 . . 2 . . . 2 2 . . . 1 . . 1 . . 1 . . . . . . . . Core 3 | . . . . . . . . . . . . . 1 . . . . . 1 . . . 1 . . . Reactor 3 | . . . . . . . . . . . . . . . . . . . . . . . 2 . 1 . Propulsion 64 | 2 1 . 7 1 1 3 7 4 3 1 6 2 1 . 1 6 . . 4 . 1 . 4 . 8 1 Treads 37 | 2 1 . 5 1 1 3 7 4 3 1 6 1 1 . 1 . . . . . . . . . . . Leg 12 | . . . . . . . . . . . . . . . . . . . . . . . 4 . 8 . Wheel 2 | . . . 2 . . . . . . . . . . . . . . . . . . . . . . . Hover 3 | . . . . . . . . . . . . 1 . . . . . . 1 . 1 . . . . . Flight 10 | . . . . . . . . . . . . . . . . 6 . . 3 . . . . . . 1 Utility 78 | 2 . 1 6 1 1 1 9 3 2 1 10 5 . 3 3 4 . 4 5 2 . 1 4 5 4 1 Device 29 | 1 . 1 . . . . . . . . 6 3 . . 3 2 . 3 3 . . 1 . 2 3 1 Storage 6 | 1 . . 3 . . . . . . . . . . . . . . . . . . . 1 1 . . Processor 9 | . . . 1 . . . 1 . . 1 . 1 . . . 1 . . 1 1 . . 1 1 . . Hackware 3 | . . . . . . . 1 . . . . . . . . 1 . . . 1 . . . . . . Protection 31 | . . . 2 1 1 1 7 3 2 . 4 1 . 3 . . . 1 1 . . . 2 1 1 . Artifact . | . . . . . . . . . . . . . . . . . . . . . . . . . . . Weapon 48 | 2 2 . 9 . . 1 5 5 4 . 2 2 . 1 1 2 . 1 2 . . . . 5 3 1 Energy Gun 5 | . 1 . 1 . . . . . . . . . . . . . . . 2 . . . . 1 . . Energy Cannon 4 | . . . . . . . . . . . . . . . . . . . . . . . . 2 2 . Ballistic Gun 29 | 2 . . 8 . . 1 4 3 2 . 2 2 . 1 1 2 . 1 . . . . . . . . Ballistic Cannon 3 | . . . . . . . . . . . . . . . . . . . . . . . . 2 . 1 Launcher 6 | . 1 . . . . . 1 2 2 . . . . . . . . . . . . . . . . . Special Weapon 1 | . . . . . . . . . . . . . . . . . . . . . . . . . 1 . Impact Weapon . | . . . . . . . . . . . . . . . . . . . . . . . . . . . Slashing Weapon . | . . . . . . . . . . . . . . . . . . . . . . . . . . . Piercing Weapon . | . . . . . . . . . . . . . . . . . . . . . . . . . . . Special Melee Weapon . | . . . . . . . . . . . . . . . . . . . . . . . . . . . Unidentified Prototypes 12 | . . . 4 . . . 1 . . . 1 1 . . . . . . 5 . . . . . . . Parts Lost 99 | . 3 . 8 . . 3 7 7 3 . 15 2 5 . 7 . . 1 2 . . . 3 . 31 2 Power 5 | . . . . . . . 1 . . . . 1 1 . . . . . . . . . . . 2 . Propulsion 34 | . 1 . 3 . . 1 2 3 1 . 5 . 1 . 1 . . 1 1 . . . 2 . 12 . Utility 34 | . 1 . 2 . . 1 4 2 1 . 6 . 2 . 3 . . . 1 . . . 1 . 9 1 Weapon 26 | . 1 . 3 . . 1 . 2 1 . 4 1 1 . 3 . . . . . . . . . 8 1 Highest Loss Streak 12 | . 3 . 2 . . 3 3 3 2 . 8 1 4 . 3 . . 1 2 . . . 3 . 12 1 To Critical Strikes 1 | . . . . . . . . . . . 1 . . . . . . . . . . . . . . . Average Backups 17 | 2 6 8 20 24 22 22 23 22 23 22 20 19 17 17 21 6 3 3 4 5 4 4 5 9 17 2 Power 1 | . . . 1 . 2 3 1 1 1 1 . . . . . . . . . . . . . . 2 . Propulsion 3 | 1 2 2 3 6 6 4 1 3 4 4 1 1 . . 7 1 . . . 1 . . 1 3 6 . Utility 6 | . 2 5 4 7 5 7 9 9 7 6 8 9 9 9 7 2 1 1 1 1 2 2 1 2 2 . Weapon 7 | . 1 1 11 10 7 8 10 9 10 10 9 7 6 7 6 3 1 1 1 2 2 2 1 2 5 2 Tool/Special . | . . . . . . . . . . . . . . . . . . . . . . . . . . . Unused Backups 73 | . 1 . 7 4 5 . 13 3 1 . 8 2 . . 3 10 1 . 3 . . . . 9 2 1 Power 12 | . 1 . . 1 . . 3 2 . . . . . . . . . . . . . . . 3 2 . Propulsion 12 | . . . . . . . 2 . . . . 2 . . 3 . . . . . . . . 5 . . Utility 27 | . . . 2 . 1 . 7 1 1 . 4 . . . . 7 . . 3 . . . . 1 . . Weapon 20 | . . . 5 3 3 . 1 . . . 4 . . . . 2 1 . . . . . . . . 1 Tool/Special 2 | . . . . . 1 . . . . . . . . . . 1 . . . . . . . . . . Average Slot Usage (%) 90 | . 98 92 94 100 100 86 96 99 98 99 87 83 75 60 76 90 100 91 92 93 85 81 75 81 72 21 Engine 6 | . 14 14 11 11 11 11 6 9 9 7 7 6 3 . 3 5 5 5 4 . . . . . . . Reactor 1 | . . . . . . . . . . . . . . . . . . . . . . . 4 8 7 . Treads 17 | . 27 28 18 22 22 21 26 26 26 30 21 15 15 13 11 1 . . . . . . . . . . Leg 2 | . . . . . . . . . . . . . . . . . . . . . . . 11 17 15 . Flight 2 | . . . . . . . . . . . . . . . . 27 35 31 33 29 26 23 7 . . 3 Device 6 | . 12 7 2 . . . . . . . 9 9 15 13 17 24 23 20 24 23 21 20 16 8 9 5 Storage 8 | . 14 14 18 21 11 11 9 9 9 7 7 7 7 6 6 1 . . . . . . 2 4 3 . Processor 13 | . . . 6 11 11 11 17 18 18 22 15 10 7 6 6 7 11 11 11 17 15 14 16 17 15 12 Protection 12 | . . . 12 11 22 10 17 18 17 15 9 16 7 . 12 5 5 7 6 . . . . 8 8 . Energy Cannon 1 | . . . . . . . . . . . . . . . . . . . . . . . . 6 6 . Ballistic Gun 13 | . 25 14 20 22 22 21 18 17 17 14 13 14 7 6 12 11 11 5 4 5 5 4 3 . . . Ballistic Cannon 1 | . . . . . . . . . . . . . . . . . . . . . . . . 7 6 . Peak Build Rating 209 | 7 7 9 20 20 24 22 32 37 44 45 71 70 67 68 73 78 78 85 108 112 119 126 160 194 209 47 Average Rating 62 | 4 6 7 15 19 21 21 29 32 41 44 53 67 61 59 63 74 78 80 95 111 112 124 138 181 176 34 On Entrance 61 | . 7 6 9 20 20 22 22 31 37 40 45 66 67 57 68 65 78 78 79 108 110 119 126 160 194 21 Naked Turns . | . . . . . . . . . . . . . . . . . . . . . . . . . . . Heaviest Build 202 | 12 13 12 99 99 100 95 102 108 112 109 117 114 115 111 119 110 31 34 38 35 27 29 81 192 202 20 Greatest Support 240 | 40 40 40 40 43 43 40 60 70 74 84 150 150 150 150 150 95 36 36 38 32 32 32 240 240 240 15 Greatest Overweight (x) 17 | . . . 17 2 2 2 1 2 1 1 1 . . . 1 1 . 1 1 1 . . . . 2 2 Average Overweight (x) . | . . . 2 2 2 2 1 1 1 1 . . . . . . . . . . . . . . . . Largest Inventory Capacity 25 | 8 8 8 25 25 25 25 25 25 25 25 25 25 25 25 25 25 5 5 5 5 5 5 10 25 25 5 Average Capacity 20 | 6 8 8 23 25 25 25 25 25 25 25 25 25 25 25 25 9 5 5 5 5 5 5 7 12 23 5 Most Carried 25 | 5 8 8 25 25 25 25 25 25 25 24 25 25 21 19 25 25 5 5 5 5 5 5 10 25 25 4 Average Carried 19 | 3 6 8 20 24 23 23 24 23 24 23 22 23 19 18 24 7 5 4 4 4 4 4 7 11 18 1 Final Capacity 25 | 8 8 8 25 25 25 25 25 25 25 25 25 25 25 25 25 5 5 5 5 5 5 5 10 25 5 5 Final Carried 25 | 4 8 8 25 25 25 22 25 25 25 24 25 21 19 16 25 5 5 5 5 5 4 4 10 25 3 1 Class Distribution -------------------- 54% | Scavenger-Mutant 23% | Mutant 13% | Gunner 5% | Scavenger-Sprinter Dominant Class ---------------- Mutant | -10/Materials Mutant | -10/Mines Mutant | -9/Materials Scavenger-Mutant | -9/Mines Scavenger-Mutant | -9/Exiles Scavenger-Mutant | -8/Mines Scavenger-Mutant | -8/Materials Scavenger-Mutant | -8/Garrison Scavenger-Mutant | -8/Materials Scavenger-Mutant | -7/Factory Scavenger-Mutant | -7/Garrison Scavenger-Mutant | -7/Factory Mutant | -7/Garrison Mutant | -6/Factory Scavenger-Mutant | -6/DSF Scavenger-Sprinter | -5/Factory Scavenger-Sprinter | -5/Upper Caves Scavenger-Mutant | -5/Upper Caves Infiltrator-Sprinter | -5/Warlord Scavenger-Sprinter | -4/Proximity Caves Scavenger-Sprinter | -4/Factory Scavenger-Sprinter | -3/Research Mutant | -3/DSF Gunner | -2/Research Gunner | -1/Access Mutant | -1/Command Resources | -11 -10 -10 -9 -9 -9 -8 -8 -8 -8 -7 -7 -7 -7 -6 -6 -5 -5 -5 -5 -4 -4 -3 -3 -2 -1 -1 ----------- Run | Yrd Mat Min Mat Min Exi Min Mat Gar Mat Fac Gar Fac Gar Fac DSF Fac Upp Upp War Pro Fac Res DSF Res Acc Com Matter Collected 11438 | 229 314 102 827 417 832 122 939 1143 598 72 1964 1255 321 . 504 28 . 316 150 40 . . 110 220 935 . Remotely 28 | . . . . . . . . . . . . . . . . 28 . . . . . . . . . . Salvage Created 12954 | 12 534 102 1087 108 . 202 1749 1286 1402 72 1602 1252 712 . 469 28 . 449 . 11 . . 651 50 1176 . Parts 666 | 4 50 4 66 5 . 11 100 67 73 3 61 74 37 . 22 2 . 15 . 1 . . 34 2 35 . Haulers Intercepted 14 | . 2 . 3 . . . 4 . . . . 3 . . 1 . . . . . . . . . 1 . Recyclers Shooed 5 | . 1 . 1 . . . . . 1 . . 1 . . . . . . . . . . . . 1 . Parts Field Recycled . | . . . . . . . . . . . . . . . . . . . . . . . . . . . Retrieved Matter . | . . . . . . . . . . . . . . . . . . . . . . . . . . . Parts Self-Destructed 14 | . . . . . . . . . . . . . . . . . . 13 . 1 . . . . . . Prevented . | . . . . . . . . . . . . . . . . . . . . . . . . . . . Kills | -11 -10 -10 -9 -9 -9 -8 -8 -8 -8 -7 -7 -7 -7 -6 -6 -5 -5 -5 -5 -4 -4 -3 -3 -2 -1 -1 ------- Run | Yrd Mat Min Mat Min Exi Min Mat Gar Mat Fac Gar Fac Gar Fac DSF Fac Upp Upp War Pro Fac Res DSF Res Acc Com Combat Hostiles Destroyed 247 | . 12 2 17 2 . 4 29 28 26 1 29 19 24 . 13 . . 10 . 2 . . 9 1 19 . Guns 158 | . 9 2 17 2 . 4 29 20 15 1 13 17 2 . 5 . . 10 . 2 . . 9 . 1 . Cannons 19 | . . . . . . . . . . . . . . . . . . . . . . . . 1 18 . AOE 70 | . 3 . . . . . . 8 11 . 16 2 22 . 8 . . . . . . . . . . . Classes Destroyed 22 | 1 6 . 3 1 . 2 2 1 2 . 2 . . . . . . . . 1 . . . 1 . . Worker 14 | . 5 . 1 . . . 1 . 4 . . 3 . . . . . . . . . . . . . . Builder 9 | . 2 . . . . . 2 . 2 . . 2 . . . . . . . . . . . . 1 . Tunneler 2 | 1 . . . . . . . . . . . 1 . . . . . . . . . . . . . . Hauler 14 | . 2 . 3 . . . 4 . . . . 3 . . 1 . . . . . . . . . 1 . Recycler 7 | . . . 2 . . . 1 . 2 . . 2 . . . . . . . . . . . . . . Mechanic 2 | . . . . . . . 1 . . . 1 . . . . . . . . . . . . . . . Operator 6 | . . . 1 . . . 2 . 1 . . 1 . . . 1 . . . . . . . . . . Drone 2 | . . . . . . . . . . . . . . . . . . . . 2 . . . . . . Watcher 11 | . 3 . 2 . . . 2 . 2 . . 1 . . . . . . . . . . . . 1 . Swarmer 44 | . 5 . 3 . . . 7 8 3 . . 3 4 . 3 . . 5 . . . . 3 . . . Cutter 3 | . . . . . . . . . . . 3 . . . . . . . . . . . . . . . Grunt 107 | . 7 2 8 1 . 2 10 12 17 . 10 6 12 . 5 . . 5 . . . . . . 10 . Brawler 7 | . . . . 1 . . . 1 1 . 1 . 1 . 2 . . . . . . . . . . . Duelist 4 | . . . . . . 1 . . . . . 2 1 . . . . . . . . . . . . . Protector 2 | . . . . . . . . . 1 . 1 . . . . . . . . . . . . . . . Sentry 31 | . . . 6 . . . 7 6 2 1 5 4 . . . . . . . . . . . . . . Specialist 6 | . . . . . . . 2 . . . 2 . 1 . . . . . . . . . 1 . . . Hunter 23 | . . . . . . 1 3 . 1 . 5 1 1 . 2 . . . . . . . 4 . 5 . Programmer 13 | . . . . . . . . . . . 2 3 4 . . . . . . . . . . . 4 . Heavy 3 | . . . . . . . . . 1 . . . . . 1 . . . . . . . 1 . . . Behemoth 1 | . . . . . . . . 1 . . . . . . . . . . . . . . . . . . Striker 1 | . . . . . . . . . . . . . . . . . . . . . . . . 1 . . Best Kill Streak 22 | 1 7 2 3 2 . 3 7 5 9 1 14 11 22 . 6 1 . 5 . 2 . . 3 1 7 . Combat Bots Only 22 | . 4 2 3 2 . 3 5 5 7 1 14 4 22 . 6 . . 5 . 2 . . 3 1 7 . Max Kills in Single Turn 4 | 1 3 1 2 1 . 1 2 4 4 1 4 3 2 . 2 1 . 1 . 1 . . 1 1 1 . Gunslinging 1 | . . . 1 . . . . . . . . 1 . . . . . . . . . . . . . . Exploded 4 | . 1 . . . . . . 4 4 . 4 2 2 . 2 . . . . . . . . . . . Melee . | . . . . . . . . . . . . . . . . . . . . . . . . . . . Uniques/NPCs Destroyed . | . . . . . . . . . . . . . . . . . . . . . . . . . . . Combat | -11 -10 -10 -9 -9 -9 -8 -8 -8 -8 -7 -7 -7 -7 -6 -6 -5 -5 -5 -5 -4 -4 -3 -3 -2 -1 -1 -------- Run | Yrd Mat Min Mat Min Exi Min Mat Gar Mat Fac Gar Fac Gar Fac DSF Fac Upp Upp War Pro Fac Res DSF Res Acc Com Hostile Shots Fired 2185 | . 65 9 148 6 . 46 179 121 110 27 353 145 65 . 91 . . 29 6 . . . 128 . 600 57 Missed 670 | . 23 3 32 1 . 8 48 35 34 15 117 42 15 . 24 . . 8 3 . . . 60 . 175 27 Deflected 3 | . . . . . . . . . . . . . . . . . . . . . . . 1 . 2 . Hits 1515 | . 42 6 116 5 . 38 131 86 76 12 236 103 50 . 67 . . 21 3 . . . 68 . 425 30 Melee 21 | . . . . 1 . 6 . . . . 5 9 . . . . . . . . . . . . . . Projectile 1494 | . 42 6 116 4 . 32 131 86 76 12 231 94 50 . 67 . . 21 3 . . . 68 . 425 30 AOE 5 | . . . . . . . . . . . 2 . . . . . . . 3 . . . . . . . Critical Strikes 57 | . . . 4 . . 4 3 6 4 . 5 7 2 . 2 . . . . . . . 4 . 16 . Actively Blocked 20 | . . . . . . . . . . . . . . . . . . . . . . . 4 . 16 . Damage Taken 26698 | . 515 77 1438 60 . 680 1965 1363 1214 84 2597 1518 935 . 1409 . . 362 238 . . . 1051 16 10469 707 Core 3537 | . 91 10 165 16 . 46 275 102 120 18 201 287 82 . 188 . . 33 93 . . . 189 . 1250 371 Absorbed by Shields 123 | . . . . . . . . . . . 28 . . . . . . . . . . . 95 . . . Reduced by Siege Mode 62 | . . . . . . . . . . . 50 . . . 12 . . . . . . . . . . . Redirected to Shielding 142 | . . . 34 4 . . 46 . . . . . . . . . . . 58 . . . . . . . Ignored by Resistances 169 | . . . . . . . . . . . . 89 80 . . . . . . . . . . . . . Regen/Repaired (Parts) 11 | . . . . . . . . . . . . . . . . . . . 11 . . . . . . . Core Remaining (%) 67 | 100 . 59 . . . 43 . . 9 . . . 16 . 77 . . . . 87 100 . 85 100 . . Volleys Fired 951 | 2 67 6 111 4 . 15 124 141 64 8 153 81 39 . 33 4 . . 1 . . . . 7 86 5 Largest 4 | 2 2 2 2 2 . 2 2 2 2 2 2 2 1 . 2 2 . . 1 . . . . 4 4 1 Hottest 356 | 40 60 60 60 46 . 46 46 51 56 56 58 58 39 . 56 56 . . 40 . . . . 356 356 58 Shots Fired 1861 | 4 124 12 220 8 . 29 248 266 121 16 274 147 39 . 48 8 . 32 9 2 . . 78 16 155 5 Gun 1609 | 4 116 12 220 8 . 29 248 263 115 16 250 144 7 . 37 8 . 32 9 2 . . 78 . 11 . Cannon 162 | . . . . . . . . . . . . . . . . . . . . . . . . 16 141 5 Launcher 87 | . 8 . . . . . . 3 6 . 24 3 32 . 11 . . . . . . . . . . . Special 3 | . . . . . . . . . . . . . . . . . . . . . . . . . 3 . Kinetic 1708 | 4 109 6 210 8 . 29 248 263 115 16 250 144 7 . 37 8 . 32 8 2 . . 78 10 119 5 Thermal 28 | . . . . . . . . . . . . . . . . . . . . . . . . 6 22 . Explosive 87 | . 8 . . . . . . 3 6 . 24 3 32 . 11 . . . . . . . . . . . Electromagnetic 23 | . 7 6 10 . . . . . . . . . . . . . . . . . . . . . . . Entropic 12 | . . . . . . . . . . . . . . . . . . . 1 . . . . . 11 . Robot Hit Streak 45 | 1 10 6 9 3 . 16 24 32 24 8 45 16 7 . 9 3 . 23 30 2 . . 25 15 12 . Robot Miss Streak 10 | 2 3 2 3 1 . 2 3 4 5 1 4 10 2 . 8 1 . 2 1 . . . 1 3 5 . Penetration Max 1 | . . . . . . . . . 1 . . 1 . . 1 . . . . . . . . . . . Secondary Targets 20 | . 1 . 3 1 . 1 6 . 3 . 1 3 . . 1 . . . . . . . . . . . Max Gunslinging Chain 1 | . 1 . 1 1 . 1 1 . 1 . 1 1 . . 1 . . . . . . . . . . . Autonomous 120 | . . . . . . . . . . . . . . . . . . 32 8 2 . . 78 . . . Shots Hit Robots 1241 | 1 73 8 143 6 . 23 196 150 73 8 199 103 22 . 36 4 . 28 7 2 . . 70 6 83 . Core Hits 684 | 1 41 5 54 4 . 9 76 56 62 3 126 62 54 . 46 2 . 15 1 2 . . 27 3 35 . Critical Kills 26 | . 2 . 3 . . 2 4 3 4 . 2 5 . . . . . . . . . . 1 . . . Critical Parts Destroyed 38 | . 2 . 5 1 . 2 5 11 4 . 4 3 . . . . . . . . . . 1 . . . Critical Strikes 75 | . 4 1 8 1 . 4 9 15 8 . 7 9 . . . . . . 1 . . . 2 . 6 . Destroy 68 | . 4 . 8 1 . 4 9 15 8 . 7 9 . . . . . . 1 . . . 2 . . . Blast 6 | . . . . . . . . . . . . . . . . . . . . . . . . . 6 . Corrupt 1 | . . 1 . . . . . . . . . . . . . . . . . . . . . . . . Melee Attacks . | . . . . . . . . . . . . . . . . . . . . . . . . . . . Impact . | . . . . . . . . . . . . . . . . . . . . . . . . . . . Slashing . | . . . . . . . . . . . . . . . . . . . . . . . . . . . Piercing . | . . . . . . . . . . . . . . . . . . . . . . . . . . . Sneak Attacks . | . . . . . . . . . . . . . . . . . . . . . . . . . . . Combat Hostiles . | . . . . . . . . . . . . . . . . . . . . . . . . . . . Follow-up Attacks . | . . . . . . . . . . . . . . . . . . . . . . . . . . . Damage Inflicted 32801 | 14 1535 81 1352 85 . 330 2864 3060 2693 147 6058 2792 2643 . 2058 86 . 737 249 52 . . 1754 472 3739 . Guns 19196 | 14 816 81 1352 85 . 330 2864 2368 1705 147 3644 2086 122 . 545 86 . 737 249 52 . . 1754 . 159 . Cannons 4030 | . . . . . . . . . . . . . . . . . . . . . . . . 472 3558 . Explosions 9553 | . 719 . . . . . . 692 988 . 2414 706 2521 . 1513 . . . . . . . . . . . Melee . | . . . . . . . . . . . . . . . . . . . . . . . . . . . Ramming 22 | . . . . . . . . . . . . . . . . . . . . . . . . . 22 . Kinetic 22190 | 14 719 29 1288 85 . 330 2864 2368 1705 147 3644 2086 122 . 545 86 . 737 249 52 . . 1754 384 2982 . Thermal 903 | . 239 . . . . . . . . . . . . . . . . . . . . . . 88 576 . Explosive 9314 | . 480 . . . . . . 692 988 . 2414 706 2521 . 1513 . . . . . . . . . . . Electromagnetic 213 | . 97 52 64 . . . . . . . . . . . . . . . . . . . . . . . Impact . | . . . . . . . . . . . . . . . . . . . . . . . . . . . Slashing . | . . . . . . . . . . . . . . . . . . . . . . . . . . . Piercing . | . . . . . . . . . . . . . . . . . . . . . . . . . . . Entropic 159 | . . . . . . . . . . . . . . . . . . . . . . . . . 159 . Highest Corruption 15 | . . . . . . . . . . . 7 14 15 . . . . . . . . . . . 10 14 Average Corruption 8 | . . . . . . . . . . . 4 10 14 . . . . . . . . . . . 6 11 Corruption Purged 4 | . . . . . . . . . . . 4 . . . . . . . . . . . . . . . Corruption Blocked . | . . . . . . . . . . . . . . . . . . . . . . . . . . . Effects 103 | . . . . . . . . . . . 21 47 13 . . . . . . . . . . . 17 5 Message Errors 17 | . . . . . . . . . . . 5 7 3 . . . . . . . . . . . 1 1 Matter Fused 26 | . . . . . . . . . . . 5 13 3 . . . . . . . . . . . 4 1 Heat Flow Errors 10 | . . . . . . . . . . . 2 7 . . . . . . . . . . . . 1 . Energy Discharges 13 | . . . . . . . . . . . 4 3 1 . . . . . . . . . . . 4 1 Parts Rejected 1 | . . . . . . . . . . . . 1 . . . . . . . . . . . . . . Data Loss (minor) 12 | . . . . . . . . . . . 2 4 3 . . . . . . . . . . . 1 2 Data Loss (major) 8 | . . . . . . . . . . . 2 1 1 . . . . . . . . . . . 4 . Misfires 3 | . . . . . . . . . . . . 1 1 . . . . . . . . . . . 1 . Alerts 3 | . . . . . . . . . . . . 3 . . . . . . . . . . . . . . Misdirections 1 | . . . . . . . . . . . . . . . . . . . . . . . . . 1 . Weapon Failures 9 | . . . . . . . . . . . 1 7 1 . . . . . . . . . . . . . Overload Shots . | . . . . . . . . . . . . . . . . . . . . . . . . . . . Overflow Damage 407 | . 62 . . . . . . 16 45 . 36 . 70 . 70 . . . . . . . . . 108 . Projectiles 108 | . . . . . . . . . . . . . . . . . . . . . . . . . 108 . Explosions 299 | . 62 . . . . . . 16 45 . 36 . 70 . 70 . . . . . . . . . . . Melee . | . . . . . . . . . . . . . . . . . . . . . . . . . . . Knockbacks 23 | . . . . . . . . . . . . . . . . . . . . . . . . 2 21 . Impact . | . . . . . . . . . . . . . . . . . . . . . . . . . . . Kinetic 22 | . . . . . . . . . . . . . . . . . . . . . . . . 2 20 . Secondary 1 | . . . . . . . . . . . . . . . . . . . . . . . . . 1 . Self-Inflicted Damage 373 | . . . . . . . . . . . 149 . 224 . . . . . . . . . . . . . Shots 11 | . . . . . . . . . . . 3 . 8 . . . . . . . . . . . . . Rammed . | . . . . . . . . . . . . . . . . . . . . . . . . . . . Targets Rammed 1 | . . . . . . . . . . . . . . . . . . . . . . . . . 1 . Kicked 1 | . . . . . . . . . . . . . . . . . . . . . . . . . 1 . Crushed . | . . . . . . . . . . . . . . . . . . . . . . . . . . . Highest Temperature 522 | . 67 70 25 . . 76 21 111 165 10 191 288 31 . 18 . . . . . . . . 388 522 . Average Temperature 67 | . 17 39 6 . . 50 6 27 37 6 28 85 8 . 9 . . . . . . . . 137 159 . Received Heat Transfer 4785 | . 243 42 591 24 . 288 558 612 648 18 615 342 180 . 153 . . 102 9 . . . . . 324 36 Effects 9 | . . . . . . . . . . . . 1 . . . . . . . . . . . 1 7 . Shutdowns 3 | . . . . . . . . . . . . . . . . . . . . . . . . . 3 . Energy Bleed 3 | . . . . . . . . . . . . 1 . . . . . . . . . . . 1 1 . Matter Decay 3 | . . . . . . . . . . . . . . . . . . . . . . . . . 3 . Siege Activations 4 | . . . . . . . . . . . 2 . . . 2 . . . . . . . . . . . Total Turns 40 | . . . . . . . . . . . 26 . . . 14 . . . . . . . . . . . Longest Duration 21 | . . . . . . . . . . . 21 . . . 9 . . . . . . . . . . . Martial Activations . | . . . . . . . . . . . . . . . . . . . . . . . . . . . Shielding Activations 2 | . . . . . . . . . . . . . . . . . . . . . . . 1 . 1 . Total Turns 17 | . . . . . . . . . . . . . . . . . . . . . . . 7 . 10 . Longest Duration 10 | . . . . . . . . . . . . . . . . . . . . . . . 7 . 10 . Robots Disrupted . | . . . . . . . . . . . . . . . . . . . . . . . . . . . Combat Hostiles . | . . . . . . . . . . . . . . . . . . . . . . . . . . . Robots Corrupted . | . . . . . . . . . . . . . . . . . . . . . . . . . . . Combat Hostiles . | . . . . . . . . . . . . . . . . . . . . . . . . . . . Parts Fried . | . . . . . . . . . . . . . . . . . . . . . . . . . . . Impact Corruptions . | . . . . . . . . . . . . . . . . . . . . . . . . . . . Robots Melted . | . . . . . . . . . . . . . . . . . . . . . . . . . . . Combat Hostiles . | . . . . . . . . . . . . . . . . . . . . . . . . . . . Parts Melted 3 | . . . . . . . . 1 . . . 1 . . . . . . . . . . . 1 . . Heat Transferred 755 | . 200 . . . . . . . . . . . . . . . . . . . . . . 74 481 . Parts Sabotaged . | . . . . . . . . . . . . . . . . . . . . . . . . . . . Parts Stolen . | . . . . . . . . . . . . . . . . . . . . . . . . . . . Parts Stripped . | . . . . . . . . . . . . . . . . . . . . . . . . . . . Power Chain Reactions 1 | . 1 . . . . . . . . . . . . . . . . . . . . . . . . . Alert | -11 -10 -10 -9 -9 -9 -8 -8 -8 -8 -7 -7 -7 -7 -6 -6 -5 -5 -5 -5 -4 -4 -3 -3 -2 -1 -1 ------- Run | Yrd Mat Min Mat Min Exi Min Mat Gar Mat Fac Gar Fac Gar Fac DSF Fac Upp Upp War Pro Fac Res DSF Res Acc Com Maximum Alert Level 5 | . 1 . . . . . 2 5 4 2 4 3 4 3 3 2 . . . . . . . . 1 1 Low Security (%) 50 | 100 89 100 100 100 . 100 62 . . . . . . . . . . . . . 100 100 100 100 62 80 Level 1 5 | . 10 . . . . . 7 5 . . 9 . . . . . . . . . . . . . 37 19 Level 2 12 | . . . . . . . 30 20 . 100 12 . 8 . 77 100 . . . . . . . . . . Level 3 21 | . . . . . . . . 28 96 . 48 100 44 100 22 . . . . . . . . . . . Level 4 8 | . . . . . . . . 37 3 . 29 . 46 . . . . . . . . . . . . . Level 5 . | . . . . . . . . 7 . . . . . . . . . . . . . . . . . . High Security . | . . . . . . . . . . . . . . . . . . . . . . . . . . . Max Security . | . . . . . . . . . . . . . . . . . . . . . . . . . . . Sterilizations 2 | . . . . . . . . . . . . . . . 1 . . . . . . . 1 . . . Peak Influence 1774 | . 224 91 84 50 . 45 462 1774 1194 540 1543 948 1356 716 798 423 . . . . . 5 192 176 321 239 Initial 864 | . . 81 7 13 . . . 299 864 540 327 809 663 711 501 418 . . . . . . 3 108 . 152 Average 418 | . 61 60 30 6 . 5 200 1019 895 499 899 818 1050 714 577 414 . . . . . . 111 55 132 166 Influence Increases 9839 | 5 542 50 500 50 . 115 969 1605 786 48 1366 677 743 5 367 35 75 220 15 10 . 5 219 333 922 177 Destroy 0b10 Robot/C 5040 | . 240 40 340 40 . 80 580 600 500 20 600 420 480 . 260 . . 200 . . . . 180 20 440 . Destroy 0b10 Robot/NC 410 | 5 60 . 45 . . . 70 20 60 . 40 65 5 . 5 5 . . . 10 . . 5 . 15 . Destroy Leader 958 | . 70 10 100 10 . 20 172 20 134 10 60 118 60 . 40 . . 20 . . . . 30 10 74 . Allied During Kill 79 | . . . . . . . . 17 . . 14 13 . . . . . . . . . . . . 35 . Successful Hack 170 | . 21 . . . . . 26 49 . 18 21 4 14 5 . . . . . . . 5 . . 7 . Disable Machine 420 | . 120 . . . . 15 15 75 30 . 15 30 30 . . 15 . . . . . . . . 60 15 Anti-Garrison Action 1450 | . . . . . . . . 650 . . 500 . . . . . . . . . . . . 300 . . Destroy Structure 667 | . 31 . . . . . 1 39 62 . 101 27 139 . 62 . . . . . . . 4 3 186 12 Partial Spotted 30 | . . . . . . . . . . . . . . . . 15 . . . . . . . . . 15 Lose Combat Pursuer 615 | . . . 15 . . . 105 135 . . 15 . 15 . . . 75 . 15 . . . . . 105 135 Influence Decreases 9600 | 5 332 239 486 85 . 115 508 292 1372 768 291 1272 335 645 285 430 170 149 385 19 . . 32 525 683 177 Entered New Map 5055 | . . 129 14 22 . . . 162 910 648 141 734 285 645 215 380 150 59 379 9 . . 2 84 . 87 Time Decay 3405 | 5 302 110 432 63 . 85 438 . 392 120 . 478 . . . 50 20 80 6 10 . . . 441 313 60 Lost Part 930 | . 30 . 40 . . 30 70 70 30 . 150 20 50 . 70 . . 10 . . . . 30 . 310 20 Lost Ally 210 | . . . . . . . . 60 40 . . 40 . . . . . . . . . . . . 60 10 Squads Dispatched 35 | . 3 . 2 . . . 5 . 8 . . 7 . . 1 . . . . . . . 1 1 7 . Investigation 6 | . 2 . 1 . . . . . 1 . . 1 . . . . . . . . . . . . 1 . Extermination 4 | . . . . . . . . . . . . 2 . . . . . . . . . . . . 2 . Reinforcement 18 | . 1 . 1 . . . 5 . 3 . . 1 . . 1 . . . . . . . 1 1 4 . Assault 2 | . . . . . . . . . 1 . . 1 . . . . . . . . . . . . . . Garrison 5 | . . . . . . . . . 3 . . 2 . . . . . . . . . . . . . . Intercept . | . . . . . . . . . . . . . . . . . . . . . . . . . . . Searches Triggered . | . . . . . . . . . . . . . . . . . . . . . . . . . . . Construction Impeded 1 | . . . . . . . . . 1 . . . . . . . . . . . . . . . . . Haulers Reinforced . | . . . . . . . . . . . . . . . . . . . . . . . . . . . Active Scanning Responses . | . . . . . . . . . . . . . . . . . . . . . . . . . . . Cargo Convoy Interrupts . | . . . . . . . . . . . . . . . . . . . . . . . . . . . Stealth | -11 -10 -10 -9 -9 -9 -8 -8 -8 -8 -7 -7 -7 -7 -6 -6 -5 -5 -5 -5 -4 -4 -3 -3 -2 -1 -1 --------- Run | Yrd Mat Min Mat Min Exi Min Mat Gar Mat Fac Gar Fac Gar Fac DSF Fac Upp Upp War Pro Fac Res DSF Res Acc Com Distress Signals 16 | . . . 2 . . . 3 . 1 . . 1 . . . . . . 2 . . . . 5 1 1 Communications Jammed . | . . . . . . . . . . . . . . . . . . . . . . . . . . . Distress Signals . | . . . . . . . . . . . . . . . . . . . . . . . . . . . Times Spotted 394 | . 20 2 28 2 . 4 49 33 29 1 39 26 24 . 14 1 7 9 23 1 . . 9 10 43 20 Peak Tracking Total 14 | . 3 2 4 2 . 3 4 5 6 1 14 5 6 . 5 1 7 5 10 1 . . 3 6 11 10 Tactical Retreats 24 | . . . 1 . . . 5 6 . . 1 . 1 . . . 1 . 1 . . . . . 5 3 Traps | -11 -10 -10 -9 -9 -9 -8 -8 -8 -8 -7 -7 -7 -7 -6 -6 -5 -5 -5 -5 -4 -4 -3 -3 -2 -1 -1 ------- Run | Yrd Mat Min Mat Min Exi Min Mat Gar Mat Fac Gar Fac Gar Fac DSF Fac Upp Upp War Pro Fac Res DSF Res Acc Com Traps Triggered 20 | . 1 . 1 . . . 1 3 . . 6 2 . . 3 . . . . . . . 3 . . . Indirectly . | . . . . . . . . . . . . . . . . . . . . . . . . . . . Trap Hack Attempts . | . . . . . . . . . . . . . . . . . . . . . . . . . . . Triggered . | . . . . . . . . . . . . . . . . . . . . . . . . . . . Disarmed . | . . . . . . . . . . . . . . . . . . . . . . . . . . . Reprogrammed . | . . . . . . . . . . . . . . . . . . . . . . . . . . . Reused . | . . . . . . . . . . . . . . . . . . . . . . . . . . . Traps Extracted . | . . . . . . . . . . . . . . . . . . . . . . . . . . . Installed . | . . . . . . . . . . . . . . . . . . . . . . . . . . . Triggered . | . . . . . . . . . . . . . . . . . . . . . . . . . . . Machines | -11 -10 -10 -9 -9 -9 -8 -8 -8 -8 -7 -7 -7 -7 -6 -6 -5 -5 -5 -5 -4 -4 -3 -3 -2 -1 -1 ---------- Run | Yrd Mat Min Mat Min Exi Min Mat Gar Mat Fac Gar Fac Gar Fac DSF Fac Upp Upp War Pro Fac Res DSF Res Acc Com Machines Disabled 40 | . 8 . . . . 1 1 10 2 . 5 2 2 . . 1 . . 1 . . . . 2 4 1 Max in Single Turn 7 | . 7 . . . . 1 1 1 1 . 1 1 1 . . 1 . . 1 . . . . 1 1 1 Garrison Access 5 | . . . . . . . . . 1 . . . . . . . . . . . 1 . . 3 . . Garrison Relay 9 | . . . . . . . . 5 . . 4 . . . . . . . . . . . . . . . Machines Repaired . | . . . . . . . . . . . . . . . . . . . . . . . . . . . Machines Dismantled . | . . . . . . . . . . . . . . . . . . . . . . . . . . . Machines Sabotaged . | . . . . . . . . . . . . . . . . . . . . . . . . . . . Overloaded Fab Kills . | . . . . . . . . . . . . . . . . . . . . . . . . . . . Hacking | -11 -10 -10 -9 -9 -9 -8 -8 -8 -8 -7 -7 -7 -7 -6 -6 -5 -5 -5 -5 -4 -4 -3 -3 -2 -1 -1 --------- Run | Yrd Mat Min Mat Min Exi Min Mat Gar Mat Fac Gar Fac Gar Fac DSF Fac Upp Upp War Pro Fac Res DSF Res Acc Com Machines Accessed 42 | . 3 . 1 . 2 . 8 4 2 4 3 6 1 1 . 1 . . 1 . 1 1 . . 3 . Terminals 27 | . 3 . 1 . . . 5 4 . 2 3 2 1 1 . 1 . . . . . 1 . . 3 . Fabricators 1 | . . . . . . . . . . . . 1 . . . . . . . . . . . . . . Repair Stations 2 | . . . . . . . . . . 1 . 1 . . . . . . . . . . . . . . Recycling Units 3 | . . . . . . . 2 . 1 . . . . . . . . . . . . . . . . . Scanalyzers . | . . . . . . . . . . . . . . . . . . . . . . . . . . . Garrison Access 6 | . . . . . . . 1 . 1 1 . 2 . . . . . . . . 1 . . . . . Total Hacks 83 | . 10 . 3 . 2 . 19 6 3 5 5 14 2 1 . 1 . . 1 . 6 1 . . 4 . Successful 36 | . 2 . 1 . 2 . 13 4 1 2 2 3 1 1 . . . . 1 . 1 1 . . 1 . Failed 47 | . 8 . 2 . . . 6 2 2 3 3 11 1 . . 1 . . . . 5 . . . 3 . Catastrophic 16 | . 3 . . . . . 3 . . . 2 3 . . . 1 . . . . 2 . . . 2 . Database Lockouts . | . . . . . . . . . . . . . . . . . . . . . . . . . . . Manual 20 | . 5 . . . 1 . 12 . . . . 2 . . . . . . . . . . . . . . Terminals 55 | . 10 . 3 . . . 15 6 . 3 5 4 2 1 . 1 . . . . . 1 . . 4 . Fabricators 1 | . . . . . . . . . . . . 1 . . . . . . . . . . . . . . Repair Stations 4 | . . . . . . . . . . 1 . 3 . . . . . . . . . . . . . . Recycling Units 4 | . . . . . . . 2 . 2 . . . . . . . . . . . . . . . . . Scanalyzers . | . . . . . . . . . . . . . . . . . . . . . . . . . . . Garrison Access 16 | . . . . . . . 2 . 1 1 . 6 . . . . . . . . 6 . . . . . Terminal Hacks 22 | . 2 . 1 . 2 . 5 4 . 1 2 . 1 1 . . . . 1 . . 1 . . 1 . Record 1 | . . . . . 1 . . . . . . . . . . . . . . . . . . . . . Open Door 4 | . . . . . . . . 1 . . 1 . . . . . . . 1 . . . . . 1 . Open DSF 2 | . . . . . . . . . . . . . . 1 . . . . . . . 1 . . . . Branch Access Points 1 | . 1 . . . . . . . . . . . . . . . . . . . . . . . . . Emergency Access Points 2 | . . . . . . . . 1 . . . . 1 . . . . . . . . . . . . . Garrison Index 1 | . . . . . . . 1 . . . . . . . . . . . . . . . . . . . Registered Components 1 | . . . . . . . 1 . . . . . . . . . . . . . . . . . . . Zone Layout 6 | . 1 . 1 . . . 3 . . 1 . . . . . . . . . . . . . . . . Garrison Registry 1 | . . . . . . . . 1 . . . . . . . . . . . . . . . . . . Patrol Navigation 2 | . . . . . . . . 1 . . 1 . . . . . . . . . . . . . . . Proto ID Catalog 1 | . . . . . 1 . . . . . . . . . . . . . . . . . . . . . Fabricator Hacks 1 | . . . . . . . . . . . . 1 . . . . . . . . . . . . . . Network Status 1 | . . . . . . . . . . . . 1 . . . . . . . . . . . . . . Repair Station Hacks 1 | . . . . . . . . . . . . 1 . . . . . . . . . . . . . . Scan Component 1 | . . . . . . . . . . . . 1 . . . . . . . . . . . . . . Recycling Unit Hacks 2 | . . . . . . . 2 . . . . . . . . . . . . . . . . . . . Retrieve Components 2 | . . . . . . . 2 . . . . . . . . . . . . . . . . . . . Scanalyzer . | . . . . . . . . . . . . . . . . . . . . . . . . . . . Garrison Access Hacks 5 | . . . . . . . 1 . 1 1 . 1 . . . . . . . . 1 . . . . . Unlock Access 3 | . . . . . . . 1 . . 1 . 1 . . . . . . . . . . . . . . Seal Access 2 | . . . . . . . . . 1 . . . . . . . . . . . 1 . . . . . Unauthorized Hacks 5 | . . . . . . . 5 . . . . . . . . . . . . . . . . . . . Terminals 5 | . . . . . . . 5 . . . . . . . . . . . . . . . . . . . Botnet 3 | . . . . . . . 3 . . . . . . . . . . . . . . . . . . . Skim 2 | . . . . . . . 2 . . . . . . . . . . . . . . . . . . . Fabricators . | . . . . . . . . . . . . . . . . . . . . . . . . . . . Repair Stations . | . . . . . . . . . . . . . . . . . . . . . . . . . . . Recycling Units . | . . . . . . . . . . . . . . . . . . . . . . . . . . . Scanalyzers . | . . . . . . . . . . . . . . . . . . . . . . . . . . . Garrison Access . | . . . . . . . . . . . . . . . . . . . . . . . . . . . Data Cores Recovered 1 | . . . . . . . . . . . . . . . . 1 . . . . . . . . . . Used 1 | . . . . . . . . . . . . . . . . 1 . . . . . . . . . . Hacking Detections 26 | . 3 . 1 . . . 3 1 1 4 3 5 1 . . 1 . . . . 1 . . . 2 . Full Trace Events 5 | . 2 . . . . . . . 1 . . 1 . . . . . . . . . . . . 1 . Feedback Events . | . . . . . . . . . . . . . . . . . . . . . . . . . . . Feedback Blocked . | . . . . . . . . . . . . . . . . . . . . . . . . . . . Robot Schematics Acquired . | . . . . . . . . . . . . . . . . . . . . . . . . . . . Robots Built . | . . . . . . . . . . . . . . . . . . . . . . . . . . . Authchips . | . . . . . . . . . . . . . . . . . . . . . . . . . . . Time . | . . . . . . . . . . . . . . . . . . . . . . . . . . . Total Robot Build Rating . | . . . . . . . . . . . . . . . . . . . . . . . . . . . Part Schematics Acquired . | . . . . . . . . . . . . . . . . . . . . . . . . . . . Parts Built . | . . . . . . . . . . . . . . . . . . . . . . . . . . . Authchips . | . . . . . . . . . . . . . . . . . . . . . . . . . . . Time . | . . . . . . . . . . . . . . . . . . . . . . . . . . . Total Part Build Rating . | . . . . . . . . . . . . . . . . . . . . . . . . . . . Parts Repaired . | . . . . . . . . . . . . . . . . . . . . . . . . . . . Time . | . . . . . . . . . . . . . . . . . . . . . . . . . . . Parts Recycled . | . . . . . . . . . . . . . . . . . . . . . . . . . . . Recycled Matter . | . . . . . . . . . . . . . . . . . . . . . . . . . . . Retrieved Matter . | . . . . . . . . . . . . . . . . . . . . . . . . . . . Retrieved Components 11 | . . . . . . . 11 . . . . . . . . . . . . . . . . . . . Parts Scanalyzed . | . . . . . . . . . . . . . . . . . . . . . . . . . . . Part Schematics Acquired . | . . . . . . . . . . . . . . . . . . . . . . . . . . . Parts Damaged . | . . . . . . . . . . . . . . . . . . . . . . . . . . . Bothacking | -11 -10 -10 -9 -9 -9 -8 -8 -8 -8 -7 -7 -7 -7 -6 -6 -5 -5 -5 -5 -4 -4 -3 -3 -2 -1 -1 ------------ Run | Yrd Mat Min Mat Min Exi Min Mat Gar Mat Fac Gar Fac Gar Fac DSF Fac Upp Upp War Pro Fac Res DSF Res Acc Com Used RIF Installer . | . . . . . . . . . . . . . . . . . . . . . . . . . . . Robots Hacked 3 | . . . . . . . . . . . . . . . . . . . . . . . . . 3 . Non-combat . | . . . . . . . . . . . . . . . . . . . . . . . . . . . Combat 1 | . . . . . . . . . . . . . . . . . . . . . . . . . 1 . Robot Hacks Applied 1 | . . . . . . . . . . . . . . . . . . . . . . . . . 1 . parse_system 1 | . . . . . . . . . . . . . . . . . . . . . . . . . 1 . Manual 2 | . . . . . . . . . . . . . . . . . . . . . . . . . 2 . Relay Couplers Released 52 | . . . . . . . . 20 . . 17 8 4 . . . . . . . . . . 3 . . Machine Destruction 40 | . . . . . . . . 20 . . 17 . . . . . . . . . . . . 3 . . Programmers 12 | . . . . . . . . . . . . 8 4 . . . . . . . . . . . . . Fabnet Peak Effective % . | . . . . . . . . . . . . . . . . . . . . . . . . . . . Robots Rewired 3 | . . . . . . . . 3 . . . . . . . . . . . . . . . . . . Allies Hacked . | . . . . . . . . . . . . . . . . . . . . . . . . . . . Hacks Repelled . | . . . . . . . . . . . . . . . . . . . . . . . . . . . Allies | -11 -10 -10 -9 -9 -9 -8 -8 -8 -8 -7 -7 -7 -7 -6 -6 -5 -5 -5 -5 -4 -4 -3 -3 -2 -1 -1 -------- Run | Yrd Mat Min Mat Min Exi Min Mat Gar Mat Fac Gar Fac Gar Fac DSF Fac Upp Upp War Pro Fac Res DSF Res Acc Com Total Allies 9 | . . . . . . . . 5 . . 2 . . . . . . . . . . . . . 2 . Largest Group 3 | . . . . . . . . 3 2 . 2 2 . . . . . . . . . . . . 2 . Highest-Rated Group 438 | . . . . . . . . 63 42 . 62 62 . . . . . . . . . . . . 438 . Highest-Rated Ally 219 | . . . . . . . . 31 21 . 31 31 . . . . . . . . . . . . 219 . Initial Warlord ECA Mod 364 | . . . . . . . . . 9 8 8 16 16 15 15 24 24 24 24 23 23 22 22 31 30 30 Total Orders 12 | . . . . . . . . . . . . . . . . . . . . . . . . . 10 2 EXPLORE 11 | . . . . . . . . . . . . . . . . . . . . . . . . . 9 2 RETURN 1 | . . . . . . . . . . . . . . . . . . . . . . . . . 1 . Ally Attacks 72 | . . . . . . . . 18 4 . 10 26 . . . . . . . . . . . . 14 . Total Damage 2238 | . . . . . . . . 401 102 . 168 403 . . . . . . . . . . . . 1164 . Kills 9 | . . . . . . . . 2 . . 2 2 . . . . . . . . . . . . 3 . Allies Corrupted . | . . . . . . . . . . . . . . . . . . . . . . . . . . . Allies Melted 3 | . . . . . . . . . . . . . . . . . . . . . . . . 3 . . Intel | -11 -10 -10 -9 -9 -9 -8 -8 -8 -8 -7 -7 -7 -7 -6 -6 -5 -5 -5 -5 -4 -4 -3 -3 -2 -1 -1 ------- Run | Yrd Mat Min Mat Min Exi Min Mat Gar Mat Fac Gar Fac Gar Fac DSF Fac Upp Upp War Pro Fac Res DSF Res Acc Com Active Infowar (turns) 6175 | 27 776 . . . . . . . . . . . . . . 34 58 134 957 353 68 16 281 2412 933 126 Optics 3849 | . . . . . . . . . . . . . . . . . . . . 13 68 16 281 2412 933 126 Sensors 1525 | . . . . . . . . . . . . . . . . 34 58 134 957 342 . . . . . . Seismic 803 | 27 776 . . . . . . . . . . . . . . . . . . . . . . . . . Cloaking 673 | . . . . . . . . . . . . . . . . . . . 21 334 68 16 234 . . . ECM 5 | . . . . . . . . . . . . . . . . . . . 2 3 . . . . . . Robot Analysis Total . | . . . . . . . . . . . . . . . . . . . . . . . . . . . Derelict Logs Recovered 5 | . . . . 1 . . . . . . . . . . . . 1 1 . 2 . . . . . . Drone Launches 14 | . . . . . . . . . . . . . . . . . . . . . . . . . 10 4 Drone Recoveries 11 | . . . . . . . . . . . . . . . . . . . . . . . . . 8 3 Exploration | -11 -10 -10 -9 -9 -9 -8 -8 -8 -8 -7 -7 -7 -7 -6 -6 -5 -5 -5 -5 -4 -4 -3 -3 -2 -1 -1 ------------- Run | Yrd Mat Min Mat Min Exi Min Mat Gar Mat Fac Gar Fac Gar Fac DSF Fac Upp Upp War Pro Fac Res DSF Res Acc Com Turns Passed 21934 | 94 856 228 2054 446 1478 576 3116 2262 930 252 2101 1239 323 10 492 113 58 160 957 353 68 16 281 2412 933 126 Spaces Moved 10632 | 57 401 132 656 130 457 156 1051 699 223 96 785 524 140 3 150 203 211 351 1369 285 165 59 150 1663 293 223 Core 81 | 18 . . 2 . . . . . . . . . . . . . . . . . . . . . 25 36 Treads 5464 | 39 401 132 475 130 457 156 1051 699 223 96 785 524 140 3 150 3 . . . . . . . . . . Legs 2016 | . . . . . . . . . . . . . . . . . . . . . . . 85 1663 268 . Wheels 179 | . . . 179 . . . . . . . . . . . . . . . . . . . . . . . Hover 40 | . . . . . . . . . . . . . . . . . . . . . . . 40 . . . Flight 2852 | . . . . . . . . . . . . . . . . 200 211 351 1369 285 165 59 25 . . 187 Fastest Speed 21 | 50 160 160 110 320 320 320 240 240 230 232 160 160 160 160 160 25 25 25 21 24 24 24 24 140 50 40 Average Speed 155 | 125 160 160 249 320 320 320 241 242 233 232 192 160 160 160 231 28 25 31 24 24 24 24 98 140 130 43 Slowest Speed 900 | 160 160 160 900 320 320 320 243 320 240 232 243 160 160 160 245 245 25 108 100 100 24 24 140 140 210 150 Overloaded Moves . | . . . . . . . . . . . . . . . . . . . . . . . . . . . Propulsion Burnouts . | . . . . . . . . . . . . . . . . . . . . . . . . . . . Robots Hopped 2 | . . . . . . . . . . . . . . . . . . . 1 . . . . . . 1 Potential Cave-ins 3 | . . . . . . . . . . . . . . . . . . . 1 . . . . . 2 . Cave-ins Triggered . | . . . . . . . . . . . . . . . . . . . . . . . . . . . Exploration Rate (%) 44 | 4 66 37 46 43 68 33 79 76 39 3 75 20 30 . 87 5 46 55 91 53 2 2 95 51 22 18 Regions Visited 26 Branch Regions 9 Pre-discovered Areas 3 | . . . . 1 1 . . . . . . . . . . . 1 . . . . . . . . . Known Exits Taken 14 | . 1 . . . . . 1 . . 1 . 1 . 1 . 1 1 1 1 1 1 1 . 1 1 . Unknown Exits Taken 7 | 1 . 1 1 1 1 1 . . 1 . . . . . . . . . . . . . . . . . Scrap Searched 9 | . . . . 1 . . . . . . . . . . . . 1 2 . 5 . . . . . . Spaces Dug 9 | . . . . . . . . . . . . . . . . . . . . . . . . . 5 4 Terrain Destroyed 654 | . 34 . . . . . . 5 85 . 150 26 176 . 94 . . 17 2 . . . 4 2 55 4 Melee . | . . . . . . . . . . . . . . . . . . . . . . . . . . . Projectile 92 | . . . . . . . . 1 4 . . 3 . . . . . 17 2 . . . 4 2 55 4 AOE 562 | . 34 . . . . . . 4 81 . 150 23 176 . 94 . . . . . . . . . . . Terrain Rammed . | . . . . . . . . . . . . . . . . . . . . . . . . . . . Walls Destroyed . | . . . . . . . . . . . . . . . . . . . . . . . . . . . Machines Disabled . | . . . . . . . . . . . . . . . . . . . . . . . . . . . Actions | -11 -10 -10 -9 -9 -9 -8 -8 -8 -8 -7 -7 -7 -7 -6 -6 -5 -5 -5 -5 -4 -4 -3 -3 -2 -1 -1 --------- Run | Yrd Mat Min Mat Min Exi Min Mat Gar Mat Fac Gar Fac Gar Fac DSF Fac Upp Upp War Pro Fac Res DSF Res Acc Com Total 14521 | 76 502 138 896 156 479 208 1387 1029 512 108 1125 781 195 7 247 256 215 400 1985 567 192 60 286 1736 729 249 Wait 2194 | . 23 . 37 12 . 22 118 135 205 . 108 135 9 . 26 19 3 35 576 276 27 . 83 18 317 10 Move 10603 | 56 400 131 655 129 456 155 1051 697 222 96 784 523 139 2 149 202 210 350 1366 284 164 58 149 1662 292 221 Hop 2 | . . . . . . . . . . . . . . . . . . . 1 . . . . . . 1 Pick Up 241 | 11 6 . 43 4 10 6 39 9 5 1 26 11 3 . 17 1 1 2 7 1 . 1 11 23 1 2 Fast Attach 51 | . 1 1 4 . . . 3 . . . 6 3 . . 4 3 . 2 11 2 . . 6 5 . . Attach 136 | 7 1 . 12 . 1 6 12 7 3 2 15 10 3 3 4 8 . 1 2 1 1 1 7 . 22 7 Detach 15 | . . . 1 . . . . . . . . 1 . . . . . . 3 . . . 1 2 4 3 Swap 83 | . 3 . 11 2 1 . 9 14 8 1 9 5 1 2 2 1 . 4 2 1 . . . 5 2 . Drop 196 | . 1 . 22 5 11 4 31 6 5 . 20 12 1 . 6 18 1 6 16 2 . . 11 14 4 . Fire 951 | 2 67 6 111 4 . 15 124 141 64 8 153 81 39 . 33 4 . . 1 . . . . 7 86 5 Melee . | . . . . . . . . . . . . . . . . . . . . . . . . . . . Ram . | . . . . . . . . . . . . . . . . . . . . . . . . . . . Kick 1 | . . . . . . . . . . . . . . . . . . . . . . . . . 1 . Crush . | . . . . . . . . . . . . . . . . . . . . . . . . . . . Escape Stasis 33 | . . . . . . . . 6 . . 3 . . . 6 . . . . . . . 18 . . . Rewire 15 | . . . . . . . . 14 . . 1 . . . . . . . . . . . . . . . Trap . | . . . . . . . . . . . . . . . . . . . . . . . . . . . Miscellaneous . | . . . . . . . . . . . . . . . . . . . . . . . . . . . Route ------- -11/Scrapyard -10/Materials (discovered 4 exits: *Mat x2 / *Min / [*Sub]) -10/Mines -9/Materials (discovered 3 exits: *Mat / [*Min x2]) -9/Mines -9/Exiles -8/Mines -8/Materials (discovered 6 exits: *Fac x3 / [*Sto x2] / Gar) -8/Garrison (discovered 3 exits: *Mat x3) -8/Materials (discovered 2 exits: *Fac / [*Sto]) -7/Factory -7/Garrison (discovered 3 exits: *Fac x3) -7/Factory -7/Garrison -6/Factory -6/DSF -5/Factory -5/Upper Caves -5/Upper Caves -5/Warlord -4/Proximity Caves -4/Factory (discovered 3 exits: *Res x2 / Upp) -3/Research -3/DSF -2/Research (discovered 2 exits: *Acc / *Tes) -1/Access -1/Command History --------- Turn | Location | Event 9 | -11/Scrapyard | Discovered new exit (range 16) 95 | -11/Scrapyard | Entered Materials 223 | -10/Materials | Identified exit to Mines 305 | -10/Materials | Build established: Mutant 518 | -10/Materials | Discovered new exit (range 4) 852 | -10/Materials | Discovered new exit (range 12) 868 | -10/Materials | Discovered new exit (range 15) 910 | -10/Materials | Lost 3 parts (1n1u1w) 951 | -10/Materials | Entered Mines 1151 | -10/Mines | Discovered new exit (range 12) 1179 | -10/Mines | Entered Materials 1179 | -9/Materials | Evolved 2 slots: Utility x2 1535 | -9/Materials | Discovered new exit (range 12) 1896 | -9/Materials | Discovered new exit (range 10) 2539 | -9/Materials | Discovered new exit (range 12) 3194 | -9/Materials | Build established: Scavenger-Mutant 3233 | -9/Materials | Entered Mines 3625 | -9/Mines | Learned location of Zion (-6) 3666 | -9/Mines | Deemed a non-threat by the Exiles lab entrance 3666 | -9/Mines | Discovered new exit (range 5) 3679 | -9/Mines | Entered Exiles 3756 | -9/Exiles | Met 8R-AWN 3931 | -9/Exiles | Met EX-HEX 4072 | -9/Exiles | Met EX-DEC 4436 | -9/Exiles | Met EX-BIN 4481 | -9/Exiles | Aligned with FarCom system 4484 | -9/Exiles | Given EX-Vault access code 4557 | -9/Exiles | Opened EX-Vault 4577 | -9/Exiles | Found Skeleton Box 4584 | -9/Exiles | Found AWS/Thermal 4598 | -9/Exiles | Found AWS/Gauss 4660 | -9/Exiles | Warned to stay clear of 0b10 Research branches 5105 | -9/Exiles | Discovered new exit (range 14) 5157 | -9/Exiles | Left Exiles lab with AWS/Gauss 5157 | -9/Exiles | Entered Mines 5170 | -8/Mines | Core integrity fell below 50% 5220 | -8/Mines | Lost 3 parts (1n1u1w) 5552 | -8/Mines | Discovered new exit (range 8) 5733 | -8/Mines | Entered Materials 5733 | -8/Materials | Evolved 2 slots: Propulsion x1, Utility x1 6198 | -8/Materials | Discovered new exit (range 15) 6949 | -8/Materials | Discovered new exit (range 8) 7387 | -8/Materials | Discovered new exit (range 16) 8226 | -8/Materials | Lost 3 parts (1n2u) 8293 | -8/Materials | Discovered new exit (range 16) 8587 | -8/Materials | Discovered new exit (range 15) 8849 | -8/Materials | Identified exit to Garrison 8849 | -8/Materials | Entered Garrison 8923 | -8/Garrison | Triggered checkpoint 8939 | -8/Garrison | Core integrity fell below 50% 8978 | -8/Garrison | Garrison Relay disabled 9436 | -8/Garrison | Discovered new exit (range 10) 9475 | -8/Garrison | Triggered checkpoint 9516 | -8/Garrison | Garrison Relay disabled 9936 | -8/Garrison | Discovered new exit (range 10) 10060 | -8/Garrison | Build established: Mutant 10066 | -8/Garrison | Lost 3 parts (1n1u1w) 10099 | -8/Garrison | Triggered checkpoint 10120 | -8/Garrison | Rescued a captive Derelict 10121 | -8/Garrison | Rescued a captive Derelict 10160 | -8/Garrison | Garrison Relay disabled 10177 | -8/Garrison | Discovered new exit (range 67) 10177 | -8/Garrison | Discovered new exit (range 25) 10177 | -8/Garrison | Discovered new exit (range 88) 10307 | -8/Garrison | Triggered checkpoint 10370 | -8/Garrison | Triggered checkpoint 10685 | -8/Garrison | Spotted B-75 Beast 10693 | -8/Garrison | Destroyed B-75 Beast 10707 | -8/Garrison | Triggered checkpoint 10762 | -8/Garrison | Garrison Relay disabled 10886 | -8/Garrison | Attempted to access garrison exit controls, blocked by remote lockdown 10935 | -8/Garrison | Build established: Scavenger-Mutant 11111 | -8/Garrison | Entered Materials 11111 | -8/Materials | Accompanied by 2 allies 11114 | -8/Materials | Discovered new exit (range 13) 11526 | -8/Materials | Garrison activated, responded to threat 11528 | -8/Materials | Core integrity fell below 20% 11784 | -8/Materials | Destroyed 7 combat bots 11911 | -8/Materials | First assault squad dispatched 12018 | -8/Materials | Discovered new exit (range 10) 12034 | -8/Materials | Destroyed 7 combat bots 12041 | -8/Materials | Entered Factory 12041 | -7/Factory | Evolved 2 slots: Propulsion x1, Utility x1 12293 | -7/Factory | Identified exit to Garrison 12293 | -7/Factory | Entered Garrison 12331 | -7/Garrison | Triggered checkpoint 12349 | -7/Garrison | Garrison Relay disabled 12468 | -7/Garrison | Lost 3 parts (1n2w) 12545 | -7/Garrison | Triggered checkpoint 12612 | -7/Garrison | Triggered checkpoint 12627 | -7/Garrison | Triggered checkpoint 12636 | -7/Garrison | Lost 8 parts (3n3u2w) 12662 | -7/Garrison | Destroyed 14 combat bots 12738 | -7/Garrison | Discovered new exit (range 15) 13085 | -7/Garrison | Triggered checkpoint 13169 | -7/Garrison | Garrison Relay disabled 13628 | -7/Garrison | Discovered new exit (range 15) 13711 | -7/Garrison | Triggered checkpoint 13780 | -7/Garrison | Garrison Relay disabled 13941 | -7/Garrison | Rescued a captive Derelict 13942 | -7/Garrison | Rescued a captive Derelict 14027 | -7/Garrison | Discovered new exit (range 10) 14159 | -7/Garrison | Garrison Relay disabled 14394 | -7/Garrison | Entered Factory 14394 | -7/Factory | Accompanied by 2 allies 14434 | -7/Factory | Garrison activated, responded to threat 14794 | -7/Factory | First assault squad dispatched 14876 | -7/Factory | Core integrity fell below 50% 14888 | -7/Factory | System corruption reached 10% 15554 | -7/Factory | Garrison activated, responded to threat 15628 | -7/Factory | Identified exit to Garrison 15633 | -7/Factory | Entered Garrison 15725 | -7/Garrison | Triggered checkpoint 15741 | -7/Garrison | Triggered checkpoint 15743 | -7/Garrison | Triggered checkpoint 15769 | -7/Garrison | Core integrity fell below 20% 15814 | -7/Garrison | Triggered checkpoint 15816 | -7/Garrison | Lost 4 parts (1p1n1u1w) 15861 | -7/Garrison | Destroyed 22 combat bots 15904 | -7/Garrison | Build established: Mutant 15935 | -7/Garrison | Discovered new exit (range 11) 15956 | -7/Garrison | Entered Factory 15956 | -6/Factory | Evolved 2 slots: Utility x2 15960 | -6/Factory | Identified exit to DSF 15966 | -6/Factory | Entered DSF 16029 | -6/DSF | Additional patrols routed to DSF 16243 | -6/DSF | Build established: Scavenger-Mutant 16295 | -6/DSF | Lost 3 parts (1u2w) 16354 | -6/DSF | Sterilization system engaged 16374 | -6/DSF | Ambient heat levels rising (+10) 16389 | -6/DSF | Ambient heat levels rising (+10) 16404 | -6/DSF | Ambient heat levels rising (+10) 16416 | -6/DSF | Discovered new exit (range 16) 16419 | -6/DSF | Ambient heat levels rising (+10) 16434 | -6/DSF | Ambient heat levels rising (+10) 16449 | -6/DSF | Ambient heat levels rising (+10) 16458 | -6/DSF | Entered Factory 16458 | -5/Factory | Evolved 2 slots: Propulsion x2 16522 | -5/Factory | Discovered new exit (range 4) 16531 | -5/Factory | Identified exit to Upper Caves 16571 | -5/Factory | Entered Upper Caves 16573 | -5/Upper Caves | Attracted the attention of an 0b10 checkpoint 16588 | -5/Upper Caves | Met a Warlord Commander 16589 | -5/Upper Caves | Learned location of Warlord (-5) 16590 | -5/Upper Caves | Warlord Commander delivered Encrypted Comm Array 16591 | -5/Upper Caves | Found Encrypted Comm Array 16597 | -5/Upper Caves | Learned location of 2 exits from Factory 16625 | -5/Upper Caves | Discovered new exit (range 8) 16628 | -5/Upper Caves | Identified exit to Upper Caves 16629 | -5/Upper Caves | Entered another Upper Caves area 16674 | -5/Upper Caves | Learned Factory security intel 16781 | -5/Upper Caves | Discovered new exit (range 9) 16783 | -5/Upper Caves | Identified exit to Warlord 16789 | -5/Upper Caves | Entered Warlord 16854 | -5/Warlord | Met Warlord 16872 | -5/Warlord | Warlord's base attacked by MAIN.C 16911 | -5/Warlord | Found Prototype Energy Gun 16912 | -5/Warlord | Found Prototype Energy Gun 16913 | -5/Warlord | Identified Vortex Rifle (x2) 17019 | -5/Warlord | Found Prototype Device 17019 | -5/Warlord | Identified Exp. Cloaking Device 17040 | -5/Warlord | Build established: Scavenger-Sprinter 17222 | -5/Warlord | Warlord forces counterattacked 17501 | -5/Warlord | Build established: Infiltrator-Sprinter 17547 | -5/Warlord | Warlord base infiltrated, sounded retreat 17554 | -5/Warlord | Spotted Executioner 17622 | -5/Warlord | Spotted Executioner 17689 | -5/Warlord | Lost 15 allies 17712 | -5/Warlord | Spotted Executioner 17717 | -5/Warlord | Spotted Striker 17721 | -5/Warlord | Spotted Executioner 17742 | -5/Warlord | Discovered new exit (range 15) 17745 | -5/Warlord | Identified exit to Proximity Caves 17746 | -5/Warlord | Entered Proximity Caves 17763 | -4/Proximity Caves | Learned Research terminal intel 17768 | -4/Proximity Caves | Lost 4 allies 17792 | -4/Proximity Caves | Learned Research interactive machine intel 17815 | -4/Proximity Caves | Discovered new exit (range 12) 17818 | -4/Proximity Caves | Identified exit to Factory 17979 | -4/Proximity Caves | Received a Behemoth hack from an annoying Tinkerer 18009 | -4/Proximity Caves | Build established: Scavenger-Sprinter 18099 | -4/Proximity Caves | Entered Factory 18099 | -4/Factory | Evolved 2 slots: Propulsion x2 18100 | -4/Factory | Identified exit to Research 18100 | -4/Factory | Identified exit to Upper Caves 18109 | -4/Factory | Discovered exit to Research (range 16) 18167 | -4/Factory | Entered Research 18167 | -3/Research | Evolved 2 slots: Power x1, Utility x1 18168 | -3/Research | Loaded intel: 47 interactive machine locations 18169 | -3/Research | Loaded intel: 24 terminal locations 18182 | -3/Research | Identified exit to DSF 18183 | -3/Research | Entered DSF 18205 | -3/DSF | Additional patrols routed to DSF 18264 | -3/DSF | Discovered new exit (range 17) 18275 | -3/DSF | Lost 3 parts (2n1u) 18431 | -3/DSF | Sterilization system engaged 18451 | -3/DSF | Ambient heat levels rising (+10) 18462 | -3/DSF | Identified exit to Research 18464 | -3/DSF | Entered Research 18464 | -2/Research | Warlord forces began assault on 0b10 18464 | -2/Research | Evolved 2 slots: Weapon x2 18489 | -2/Research | Distinguished unit "Knights of the Pentagonal Table" dispatched to help 18489 | -2/Research | Distinguished unit "Lair Dwellers" dispatched to help 18491 | -2/Research | Met up with Warlord 18574 | -2/Research | Research machine network offline 18817 | -2/Research | Build established: Gunner 18942 | -2/Research | Borebot progress halted 19137 | -2/Research | Borebot progress halted 19154 | -2/Research | Discovered new exit (range 21) 19183 | -2/Research | Identified exit to Testing 19263 | -2/Research | Borebot progress halted 19521 | -2/Research | Warlord invited to help at Command 19521 | -2/Research | Given Cave Seal Controls access code 19614 | -2/Research | Spotted Striker 19617 | -2/Research | Destroyed Striker 20084 | -2/Research | Spotted Striker 20085 | -2/Research | Spotted Striker 20115 | -2/Research | P-80 Master assimilated allied F6-1Z3(s) 20144 | -2/Research | Lost 3 allies 20283 | -2/Research | Discovered new exit (range 8) 20292 | -2/Research | Identified exit to Access 20876 | -2/Research | Entered Access 20876 | -1/Access | Evolved 2 slots: Utility x2 21023 | -1/Access | Lost 3 allies 21556 | -1/Access | Lost 3 parts (2n1w) 21599 | -1/Access | System corruption reached 10% 21621 | -1/Access | Lost 4 parts (2n2w) 21625 | -1/Access | Destroyed 7 combat bots 21704 | -1/Access | Lost 9 parts (1p2n4u2w) 21732 | -1/Access | Core integrity fell below 50% 21736 | -1/Access | Spotted B-99 Colossus 21738 | -1/Access | Spotted B-99 Colossus 21739 | -1/Access | Befriended a Behemoth using the annoying Tinkerer's hack 21745 | -1/Access | Befriended a Behemoth using the annoying Tinkerer's hack 21766 | -1/Access | Discovered new exit (range 4) 21769 | -1/Access | Identified exit to Command 21781 | -1/Access | Lost 12 parts (1p6n2u3w) 21809 | -1/Access | Entered Command 21849 | -1/Command | Core integrity fell below 20% 21933 | -1/Command | Spotted Executioner 21933 | -1/Command | Spotted Executioner 21933 | -1/Command | Spotted Executioner 21933 | -1/Command | Spotted Executioner 21933 | -1/Command | Spotted Striker 21933 | -1/Command | Spotted Striker 21933 | -1/Command | Spotted Alpha 7 21933 | -1/Command | Spotted Alpha 7 21934 | -1/Command | Spotted B-99 Colossus 21935 | -1/Command | Destroyed by Alpha 7 with Enhanced Gamma Rifle Last Messages --------------- 21854_ P-80 Master resets W-44 Eye, system corruption cleaned. 21854_ K-01 Serf cleans the Operations Mainframe. 21858_ BFHT 21934_ Penetrated by Slug. 21934_ Slug penetrates Wall. 21934_ Slug penetrates Executioner. 21934_ Slug penetrates Wall. 21934_ Penetrated by Slug. 21934_ Slug penetrates Executioner. 21934_ Access Shell breached. 21935_ Wall collapses. 21935_ Penetrated by Slug. 21935_ Slug penetrates Door. 21935_ Slug penetrates Wall. Map ----- +----------------------------------------------------+ | ????????????????????? = ##########???? | | ???????????????????# # #???? | | ???????????????????# # #???? | | ???????????????????# """" """" # "" #???? | | ???????????????????# """" """" # """" #???? | | ???????????????????# """" """" # """" #???? | | ???????????????????# """" """" # "" #???? | | ???????????????????# # #???? | | ???????????????????# # #???? | | ???????????????##############+####+## #???? | | ????????? + ""#???? | | ????????? # ""#???? | | ????????? + ""#???? | | ?????????? # T#???? | | ??????????################# #### # ""#???? | | ??????????????????????????# ##?# # ""#???? | | ??????????????????????????# T"?# # ""#???? | | ??????????????????????????# "??# # ! #???? | | ??????????????????????????# #??# # #???? | | ??????????????????????????# ####+#"########???? | | ??????????????????????????# # #??????????? | | ????????????BB????????????# # #??????????? | | ????????????BB????????????# # #??????????? | | ????? #E# # # ????# # #??????????? | | ??????????"^ E K7 ### #p #??????????? | | ?????" /@ p #??????????? | | ??????????" / # #??????????? | | ??????????"^ /% + [#??????????? | | ??????????" / # #??????????? | | ??????????" E E K ###### # #??????????? | | ??????? ; ; # #7##?????# # #??????????? | | ?????? BB;##?#?##???????# # #??????????? | | ?????? BB???????????????# # #??????????? | | ???????#####?????????????????# # #??????????? | | ?????????????????????????????# ########??########? | | ?????????????????????????????# #?????????# #? | | ?????????????????????????????# ########### #? | | ?????????????????????????????# g + #? | | ?????????????????????????????# #####+##### #? | | ?????????????????????????????# #?? ??# #? | | ????????????????????????????? # # #? | | ???????????????????????????? # ##+#####? | | ??????????????????????????? # "" "" + #??### | | ??????????????????????????? # ""T"" ## #? | | ?????????????????????????? # """ ## #? [ | | ????????????????????????? # ## # | | ???????????????????????? ? + = ## # | | ????????????????????????###?############### + | | ??????????????????????????????????????????# # | | ??????????????????????????????????????????# ###### | +----------------------------------------------------+ Best States ------------- Heat Dissipation 81 Coolant Potential 65 Energy Generation 45 Energy Capacity 600 Matter Stores 500 Matter Capacity 500 Sight Range 22 Robot Scan Range 15 Terrain Scan Density 10 ECM Strength 2 Cloak Strength 4 Armor Coverage 900 Resistance: EM 25 Core Shielding 20 Propulsion Shielding 66 Weapon Cycling 25 Phase Shifting 15 Evasion (%) 75 Targeting Accuracy 8 Launcher Accuracy 40 Target Analysis 5 Core Analysis 6 Armor Integrity Analysis 30 Recoil Reduction 9 Kinecelleration 40 Offensive Hacking 10 Defensive Hacking 11 Authchip Count 1 Item Schematics ----------------- None Robot Schematics ------------------ None Fabricated ------------ Nothing Repaired ---------- Nothing Alien Tech Used ----------------- None Achievements -------------- Woof! Challenges ------------ None Game ------ Seed StructuralMachineAutogun Manual? 0 Play Time 02:21:15 Cumulative 317.6 hours Start 2025.09.22 @ 21:48:20 End 2025.09.23 @ 03:28:09 Sessions 5 Manual Loads 0 Difficulty Rogue Special Mode None Game No. 433 Rogue 433 Adventurer 0 Explorer 0 Win Type - Total 10 Types 5/0/1/2/1/0/1/0/0/0 Lore% 86 Gallery% 82 Achievement% 67 Wizard Run 0 Options --------- Layout 0 ASCII 0 Keyboard 0 Movement Mouse Keybinds 0 Fullscreen 1 Font 24/Tamsyn Map View 76x50 Zoom Use 0% Tactical HUD 1 Map Filters NONE Filters NONE Steam 1 RUN: 203134eb-2960-4dbc-91ad-4e783825260d